[Event "Marshall CC Premier 01-2025"]
[Site "New York"]
[Date "2025.01.04"]
[Round "2.1"]
[White "Chasin, Nico"]
[Black "Lyutsinger, Iren"]
[Result "0-1"]
[ECO "B91"]
[WhiteElo "2413"]
[BlackElo "2127"]
[Annotator "TA"]
[PlyCount "33"]
[EventDate "2025.01.03"]
[EventType "swiss"]
[EventCountry "USA"]
[SourceTitle "playchess.com"]
[Source "ChessBase"]
[SourceQuality "1"]
[TimeControl "5400+30"]

{[%evp 17,33,27,31,18,26,15,12,-67,-73,-68,-70,-85,-80,-95,-49,-32,-36,-55]} 1. e4 {[%emt 0:02:06]} c5 {[%emt 0:12:41]} 2. Nc3 {[%emt 0:00:04]} a6 {[%emt 0:00:14]} 3. Nge2 {[%emt 0:00:09]} d6 {[%emt 0:00:38]} 4. g3 {[%emt 0:00:07]} Nf6 {[%emt 0:00:18]} 5. Bg2 {[%emt 0:00:05]} g6 {[%emt 0:00:16]} 6. O-O {[%emt 0:00:43]} Bg7 {[%emt 0:00:04]} 7. d4 {[%emt 0:00:28]} cxd4 {[%emt 0:00:20]} 8. Nxd4 {[%emt 0:00:09]} O-O {[%emt 0:00:35]} 9. h3 {[%emt 0:00:39]} Nc6 {[%emt 0:01:52]} 10. Be3 {[%emt 0:00:33]} Nd7 {[%emt 0:00:37]} 11. f4 {[%emt 0:01:06]} Qb6 {[%emt 0:06:24]} 12. Nce2 {[%emt 0:03:35]} ({White should try} 12. e5 $1 $11) 12... Qxb2 $15 {[%emt 0:04:23]} 13. Nxc6 {[%emt 0:05:10]} bxc6 {[%emt 0:00:49]} 14. Rb1 {[%emt 0:00:02]} Qxa2 {[%emt 0:03:23]} 15. Nd4 {[%emt 0:01:13]} Nb8 {[%emt 0:17:17]} ({Better is} 15... Bxd4 $17 16. Qxd4 Qxc2) 16. Qd2 {[%emt 0:08:33]} a5 {[%emt 0:03:21]} 17. Ra1 {[%emt 0:04:00]} 0-1

[Event "Marshall CC Premier 01-2025"]
[Site "New York"]
[Date "2025.01.04"]
[Round "2.2"]
[White "Espinosa, Pedro"]
[Black "Ling, Chenxuan"]
[Result "1-0"]
[ECO "D38"]
[WhiteElo "2220"]
[BlackElo "2081"]
[Annotator "TA"]
[PlyCount "85"]
[EventDate "2025.01.03"]
[EventType "swiss"]
[EventCountry "USA"]
[SourceTitle "playchess.com"]
[Source "ChessBase"]
[SourceQuality "1"]
[TimeControl "5400+30"]

{[%evp 12,85,20,23,25,25,37,39,45,34,54,47,38,40,47,41,59,44,64,49,52,61,64,62,56,57,61,63,118,123,144,112,118,115,147,150,149,142,150,119,152,150,146,139,130,119,129,91,128,125,273,276,284,288,479,356,367,353,365,358,425,425,400,333,425,425,425,425,675,574,583,485,1023,1010,1887,1739]} 1. d4 {[%emt 0:10:04]} Nf6 {[%emt 0:00:22]} 2. c4 {[%emt 0:06:05]} e6 {[%emt 0:00:26]} 3. Nf3 {[%emt 0:00:17]} d5 {[%emt 0:00:10]} 4. Nc3 {[%emt 0:00:29]} Bb4 {[%emt 0:00:11]} 5. cxd5 {[%emt 0:00:50]} exd5 {[%emt 0:00:13]} 6. Bg5 {[%emt 0:00:57]} h6 {[%emt 0:00:13]} 7. Bh4 {[%emt 0:00:19][%cal Bg5h4,Bh4g3,Bg3e5,Be5d4][%mdl 32]} O-O {[%emt 0:02:23]} 8. e3 {[%emt 0:01:20]} c5 {[%emt 0:04:00]} 9. dxc5 {[%emt 0:02:06]} Nbd7 {[%emt 0:03:35][%cal Od8a5,Bb8d7,Bd7c5,Bc5e4][%mdl 32]} 10. Rc1 {[%emt 0:00:19]} g5 {[%emt 0:09:35]} 11. Bg3 {[%emt 0:03:10]} Nxc5 {[%emt 0:00:29]} 12. Be2 {[%emt 0:06:31]} Nce4 {[%emt 0:03:49]} 13. O-O {[%emt 0:06:53]} Bxc3 {[%emt 0:03:02]} 14. bxc3 {[%emt 0:01:23]} Be6 {[%emt 0:00:47]} 15. Be5 {[%emt 0:06:31]} Nd7 {[%emt 0:06:25]} 16. Bd4 {[%emt 0:05:00]} Rc8 {[%emt 0:01:04]} 17. Nd2 {[%emt 0:07:24]} Nxd2 {[%emt 0:08:06]} 18. Qxd2 {[%emt 0:01:32][%cal Of2f4]} Nc5 {[%emt 0:00:03]} 19. Rfd1 {[%emt 0:05:08]} Ne4 {[%emt 0:01:50]} ({Better is} 19... Qe7 $14) 20. Qb2 $16 {[%emt 0:03:41]} Nd6 {[%emt 0:05:23] Dodges c4} 21. c4 {[%emt 0:12:12] White is more active.} Nxc4 {[%emt 0:01:33]} 22. Qxb7 {[%emt 0:02:09]} Qd7 {[%emt 0:05:14]} 23. Qxd7 {[%emt 0:05:09]} (23. Qxa7 Qxa7 24. Bxa7 Ra8 $15) 23... Bxd7 {[%emt 0:00:02]} 24. Bxa7 {[%emt 0:00:31][%cal Oe2c4] This pair of bishops is nice.} Be6 {[%emt 0:03:45]} 25. Ra1 {[%emt 0:01:16]} Ra8 {[%emt 0:01:21]} 26. Bd4 {[%emt 0:04:00]} Ra4 {[%emt 0:00:44]} 27. Bd3 {[%emt 0:04:01]} Rfa8 {[%emt 0:01:34]} 28. Rdb1 {[%emt 0:01:33]} Kf8 {[%emt 0:03:16]} 29. Bc5+ {[%emt 0:00:48]} Kg7 {[%emt 0:00:49]} 30. a3 {[%emt 0:00:07]} Nxa3 {[%emt 0:04:43] [#]} (30... Rc8 $16 {is a better defense.} 31. Bd4+ Kg8) 31. Rb4 $1 $18 {[%emt 0:01:11] Rxa4 is the strong threat.} R4a5 {[%emt 0:11:29]} 32. Bb6 {[%emt 0:01:11]} Nc4 $2 {[%emt 0:00:42]} (32... Nc2 33. Rxa5 (33. Bxa5 Nxb4 34. Bf1 f6 $11) 33... Nxb4) 33. Bxa5 {[%emt 0:00:46]} Rxa5 {[%emt 0:00:08]} 34. Rxa5 {[%emt 0:00:48]} Nxa5 {[%emt 0:00:01][%mdl 4096] Endgame KRB-KBN} 35. Rb6 {[%emt 0:00:12] Repels Nc6} Nc4 {[%emt 0:00:32]} 36. Bxc4 {[%emt 0:00:47]} dxc4 {[%emt 0:00:10] KR-KB} 37. Kf1 {[%emt 0:00:34]} Kf6 {[%emt 0:00:07]} 38. Ke2 {[%emt 0:00:31]} Ke5 {[%emt 0:00:13]} 39. Kd2 {[%emt 0:00:15]} f6 {[%emt 0:00:08]} (39... Kf6 $142 40. e4 Ke5) 40. Kc3 {[%emt 0:00:51]} Bd5 {[%emt 0:00:07]} 41. f3 {[%emt 0:00:31]} g4 {[%emt 0:00:19]} (41... Bg8 $142 42. Rb5+ Kd6) 42. e4 {[%emt 0:00:45]} Ba8 {[%emt 0:00:38]} 43. Kxc4 {[%emt 0:00:45]} 1-0

[Event "Marshall CC Premier 01-2025"]
[Site "New York"]
[Date "2025.01.04"]
[Round "2.3"]
[White "Zhu, Linxi"]
[Black "Sukhiashvili, Alexander"]
[Result "1-0"]
[ECO "B28"]
[WhiteElo "2125"]
[BlackElo "2019"]
[Annotator "TA"]
[PlyCount "95"]
[EventDate "2025.01.03"]
[EventType "swiss"]
[EventCountry "USA"]
[SourceTitle "playchess.com"]
[Source "ChessBase"]
[SourceQuality "1"]
[TimeControl "5400+30"]

{[%evp 14,95,21,19,9,5,79,81,88,72,77,35,40,49,50,-2,5,0,44,22,396,392,379,389,423,414,431,435,485,483,565,562,569,566,581,548,612,600,654,654,657,630,750,791,792,731,763,735,798,790,803,793,834,838,845,845,865,856,870,849,954,935,970,994,2888,3805,3629,3067,3161,2896,29982,29983,29985,29986,29986,29987,29988,29989,29989,29990,29990,29991,29991,29991]} 1. e4 {[%emt 0:00:05]} c5 {[%emt 0:00:03]} 2. Nf3 {[%emt 0:00:05]} a6 {[%emt 0:00:04]} 3. c4 {[%emt 0:00:04]} Nc6 {[%emt 0:00:17]} 4. d4 {[%emt 0:00:06]} cxd4 {[%emt 0:00:03]} 5. Nxd4 {[%emt 0:00:05]} Nf6 {[%emt 0:00:18]} 6. Nc3 {[%emt 0:00:07]} e5 {[%emt 0:00:44]} 7. Nc2 {[%emt 0:05:41]} Bc5 {[%emt 0:03:28]} 8. Be2 {[%emt 0:02:26]} Nd4 {[%emt 0:05:27]} 9. O-O {[%emt 0:01:53]} Nxe2+ {[%emt 0:02:27]} (9... d6 $11 {remains equal.}) 10. Qxe2 $16 {[%emt 0:00:08]} O-O {[%emt 0:00:16] White is better.} 11. Bg5 {[%emt 0:01:18]} h6 {[%emt 0:03:00]} 12. Bh4 {[%emt 0:03:20]} g5 {[%emt 0:05:27]} 13. Bg3 {[%emt 0:00:13]} d6 {[%emt 0:00:30]} 14. Ne3 {[%emt 0:00:59] Repels Bg4} ({White should play} 14. h3 $14) 14... Be6 {[%emt 0:03:59]} 15. Rad1 {[%emt 0:02:46] aiming for Bxe5.} Qc7 {[%emt 0:07:50]} 16. Qf3 {[%emt 0:09:57]} Kg7 {[%emt 0:17:34][%mdl 8192] [#] Loses the game.} (16... Qe7 $1 $11) 17. Qxf6+ $3 $18 {[%emt 0:00:10][%mdl 512]} Kxf6 {[%emt 0:02:20]} 18. Ncd5+ {[%emt 0:00:34]} Bxd5 {[%emt 0:02:18]} 19. Nxd5+ {[%emt 0:00:05]} Kg7 {[%emt 0:00:24]} 20. Nxc7 {[%emt 0:00:06]} Rac8 {[%emt 0:00:05]} 21. Nd5 {[%emt 0:00:46][%cal Bc7d5,Bd5e7,Be7f5,Bf5d6][%mdl 32]} Rfd8 {[%emt 0:03:51]} 22. Ne7 {[%emt 0:00:27]} Rb8 {[%emt 0:00:21]} 23. Nf5+ {[%emt 0:00:15]} Kh7 {[%emt 0:00:06]} 24. Rd5 {[%emt 0:00:14]} b5 {[%emt 0:01:39]} 25. cxb5 {[%emt 0:00:08]} Rxb5 {[%emt 0:00:08]} 26. Bxe5 {[%emt 0:01:34]} Re8 {[%emt 0:07:23]} 27. Bxd6 {[%emt 0:01:25]} Bxd6 {[%emt 0:00:13]} 28. Nxd6 {[%emt 0:00:11]} Rxd5 {[%emt 0:00:42]} 29. exd5 {[%emt 0:00:05][%mdl 4096] Endgame. KRN-KR} Rd8 {[%emt 0:00:23]} 30. Ne4 {[%emt 0:00:05]} f5 {[%emt 0:00:16]} 31. Nc3 {[%emt 0:00:06]} Kg7 {[%emt 0:00:09]} 32. Re1 {[%emt 0:00:06]} Kf7 {[%emt 0:34:45]} 33. Re6 {[%emt 0:00:14]} Rb8 {[%emt 0:00:00]} 34. b3 {[%emt 0:00:12][%cal Bb2b3,Bb3b4,Bb4b5,Bb5b6][%mdl 32]} Rc8 {[%emt 0:00:00]} 35. Rc6 {[%emt 0:00:07]} Re8 {[%emt 0:00:00]} 36. Kf1 {[%emt 0:00:04]} (36. Rxh6 $2 Re1#) 36... h5 {[%emt 0:00:00][%cal Bh6h5,Bh5h4][%mdl 32]} 37. Rxa6 {[%emt 0:00:11]} Rc8 {[%emt 0:00:00]} 38. Rc6 {[%emt 0:00:07]} Rd8 {[%emt 0:00:00]} 39. b4 {[%emt 0:00:07]} g4 {[%emt 0:00:00]} 40. b5 {[%emt 0:00:05]} h4 {[%emt 0:00:00]} 41. b6 {[%emt 0:00:05] [#] Strongly threatening a4.} Rb8 {[%emt 0:00:00]} 42. a4 {[%emt 0:00:05][%cal Ba2a4,Ba4a5,Ba5a6,Ba6a7][%mdl 32] White mates.} f4 {[%emt 0:00:00][%cal Bf5f4,Bf4g3][%mdl 32]} 43. a5 {[%emt 0:00:10]} g3 {[%emt 0:00:00]} 44. hxg3 {[%emt 0:00:09]} hxg3 {[%emt 0:00:00]} 45. fxg3 {[%emt 0:00:05]} fxg3 {[%emt 0:00:00]} 46. a6 {[%emt 0:00:06]} Kg7 {[%emt 0:00:00]} 47. a7 {[%emt 0:00:27]} Rf8+ {[%emt 0:00:00]} 48. Ke1 {[%emt 0:00:05] Weighted Error Value: White=0.13 (very precise) /Black=0.55.  Loses game:     	---       	Black=1      Mistake:       	White=1     	Black=1      Inaccurate:     	White=1     	Black=1      OK:         	White=8     	Black=2      Brilliant:      	White=1     	---} 1-0

[Event "Marshall CC Premier 01-2025"]
[Site "New York"]
[Date "2025.01.04"]
[Round "2.4"]
[White "Luo, Wesley"]
[Black "Rohde, Michael"]
[Result "1/2-1/2"]
[ECO "B90"]
[WhiteElo "1992"]
[BlackElo "2269"]
[Annotator "TA"]
[PlyCount "99"]
[EventDate "2025.01.03"]
[EventType "swiss"]
[EventCountry "USA"]
[SourceTitle "playchess.com"]
[Source "ChessBase"]
[SourceQuality "1"]
[TimeControl "5400+30"]

{[%evp 11,99,14,16,23,31,38,34,-16,0,-43,-38,-38,30,-15,-18,-21,16,-8,73,8,0,0,0,-6,20,9,74,21,31,0,0,0,0,0,0,-8,4,-44,-47,-33,-19,-70,-27,-78,-92,-151,-152,-168,-169,-160,-102,-120,53,49,36,25,179,158,172,157,180,190,179,187,182,182,134,62,61,68,65,19,14,0,0,0,0,0,270,168,170,125,105,0,0,0,0,0,0,0]} 1. e4 {[%emt 0:00:03]} c5 {[%emt 0:07:26]} 2. Nf3 {[%emt 0:00:06]} d6 {[%emt 0:00:20]} 3. d4 {[%emt 0:00:10]} cxd4 {[%emt 0:00:06]} 4. Nxd4 {[%emt 0:00:05]} Nf6 {[%emt 0:00:11]} 5. Nc3 {[%emt 0:00:03]} a6 {[%emt 0:00:20]} 6. h3 {[%emt 0:00:48]} g6 {[%emt 0:06:15]} 7. Be3 {[%emt 0:01:29]} Bg7 {[%emt 0:00:14]} 8. g4 {[%emt 0:00:12]} Nc6 {[%emt 0:04:13]} 9. Nb3 {[%emt 0:03:52]} (9. Bg2 $14) 9... b5 {[%emt 0:10:35]} 10. f4 {[%emt 0:05:01]} O-O {[%emt 0:07:10]} 11. Bg2 {[%emt 0:03:09][%cal Oe4e5]} Bd7 {[%emt 0:04:39]} (11... Bb7 $15) 12. Qd2 {[%emt 0:02:48]} b4 {[%emt 0:04:51]} 13. Ne2 {[%emt 0:02:44]} Qc7 {[%emt 0:07:01]} 14. O-O {[%emt 0:03:36]} Be6 {[%emt 0:00:42]} (14... a5 $11) 15. Ned4 {[%emt 0:03:24]} (15. c3 $16) 15... Nxd4 $11 {[%emt 0:02:36]} 16. Nxd4 {[%emt 0:00:40]} Bc4 {[%emt 0:00:41]} 17. Rf2 {[%emt 0:02:13]} Rab8 {[%emt 0:02:55]} 18. b3 {[%emt 0:07:17]} Bb5 {[%emt 0:00:50]} (18... e5 $11 {keeps the balance.}) 19. Re1 {[%emt 0:07:12]} (19. Qxb4 Bf1 20. Qd2 Bxg2 21. Rxg2 e5 (21... Nxe4 22. Qd3 $17) 22. fxe5 dxe5 $17) (19. Rc1 $16) 19... Bd7 {[%emt 0:08:46] [#]} 20. e5 $1 {[%emt 0:07:30]} Ne8 {[%emt 0:01:53]} (20... dxe5 21. fxe5) 21. Nf3 {[%emt 0:01:17]} Bc6 {[%emt 0:03:00]} 22. Bd4 {[%emt 0:01:04]} dxe5 {[%emt 0:01:35]} 23. fxe5 {[%emt 0:01:40]} Bd5 {[%emt 0:05:15]} 24. Ng5 {[%emt 0:05:43]} (24. Qe3 $11 {might be stronger.}) 24... Bxg2 $15 {[%emt 0:01:02]} 25. Rxg2 {[%emt 0:00:32]} Qc6 {[%emt 0:03:10]} 26. e6 {[%emt 0:08:17]} (26. c4 $11) 26... f6 {[%emt 0:02:20]} 27. Ne4 {[%emt 0:00:45]} (27. Nf7 $11) 27... Nc7 $17 {[%emt 0:04:01]} 28. Nc5 {[%emt 0:01:21]} (28. Bc5 $142 Rfd8 (28... Qxe6 29. Nf2 $11) (28... Nxe6 29. Bxe7 Rf7 30. Qd6 $11) 29. Qf2) 28... Rfd8 {[%emt 0:02:40]} 29. Qf2 {[%emt 0:03:19]} Rb5 {[%emt 0:00:49][%cal Od8d4]} 30. Be3 {[%emt 0:06:19]} Nd5 {[%emt 0:02:58]} (30... Nxe6 31. Nxe6 Qxe6 32. Bc5 $17) ({Black should try} 30... f5 {White must now prevent ...Nd5.} 31. gxf5 Rf8) 31. Bd4 {[%emt 0:01:34]} Bh6 $2 {[%emt 0:00:57] [#]} (31... Rd6 $17 32. a3 Nc7 (32... bxa3 33. c4 $15) 33. axb4 (33. a4 $2 Rxd4 34. Qxd4 Rxc5 $19) 33... Rxb4 (33... Nxe6 34. Nxe6 Rxe6 35. Rxe6 $14)) 32. g5 $1 $14 {[%emt 0:00:18]} Bg7 {[%emt 0:00:19]} (32... Bxg5 $2 33. Rxg5 Ra5 34. a4 $18) 33. Nd7 $1 {[%emt 0:00:25]} f5 $2 {[%emt 0:01:55]} (33... Qd6 $11 34. Rg4 (34. gxf6 exf6 35. Rg4 a5 $16) 34... Rc8) 34. Bxg7 $18 {[%emt 0:00:42]} Kxg7 {[%emt 0:00:02]} 35. Qd4+ {[%emt 0:01:09]} Kg8 {[%emt 0:00:03]} 36. a4 $1 {[%emt 0:01:09]} Rb7 {[%emt 0:02:39]} (36... bxa3 37. c4 Rxb3 38. cxd5 (38. Qxd5 Qc7 $16)) 37. Rd2 {[%emt 0:01:17]} Rbxd7 {[%emt 0:00:14]} (37... Nb6 38. Nf6+ (38. Qxb4 Re8 $18) 38... exf6 39. Qxd8+) 38. exd7 {[%emt 0:00:20]} Rxd7 {[%emt 0:00:06]} 39. Qc4 {[%emt 0:00:49]} ({White should try} 39. Qe5 $16 {Qe6+ is the strong threat.} Rd6 40. Red1 Qb6+ 41. Kh1) 39... Qd6 $14 {[%emt 0:00:45]} 40. Rd3 {[%emt 0:02:42] Against Qg3+. White is much more active.} e6 {[%emt 0:00:44][%cal Be7e6,Be6d5][%mdl 32]} 41. Qc8+ {[%emt 0:01:32]} (41. Qd4 $14) 41... Kg7 $11 {[%emt 0:00:21]} 42. Re2 {[%emt 0:02:13]} Rc7 {[%emt 0:02:47]} 43. Qb8 {[%emt 0:04:52]} Qc5+ {[%emt 0:01:30]} 44. Kf1 {[%emt 0:00:50][%cal Ob8d8] The board is on fire.} f4 $2 {[%emt 0:00:39][%mdl 8192]} (44... Nf4 $2 45. Rd8 Kf7 46. Rg8 $18 (46. Rh8 Rc8 $18)) (44... Qd6 $1 $11 {and Black stays safe.}) 45. Rxd5 {[%emt 0:02:31]} ({Not} 45. Rxe6 Ne3+ 46. Ke1 Ng2+ (46... Qxc2 47. Rd7+ Rxd7 48. Qe5+ Kg8 49. Re8+ Kf7 50. Qe6+ Kg7 51. Qxd7#) 47. Kf1 (47. Ke2 $2 Qxc2+ 48. Rd2 f3+ 49. Kxf3 Qf5+ 50. Kxg2 Qxg5+ 51. Kf1 Rc1+ 52. Re1 Qf5+ 53. Kg2 Rxe1 $19) 47... Ne3+ 48. Ke1 Ng2+ 49. Kf1 Ne3+ $11) 45... exd5 {[%emt 0:00:15] [#]} 46. Re8 $1 {[%emt 0:00:03] Intending Rg8+ and mate. Inhibits Qc3.} Re7 {[%emt 0:00:42] [#]} 47. Rh8 {[%emt 0:02:28]} ({Only move:} 47. Rg8+ $1 $16 Kf7 48. Rf8+ Kg7 49. Rxf4 (49. Qxf4 Qc3 $11) (49. Rh8 Re1+ 50. Kxe1 Qg1+ 51. Ke2 Qe3+ 52. Kf1 Qf3+ 53. Ke1 Qe3+ 54. Kf1 Qxh3+ 55. Ke2 Qe3+ 56. Kd1 Qg1+ 57. Ke2 Qe3+ 58. Kd1 Qd4+ 59. Kc1 Qa1+ 60. Kd2 Qd4+ 61. Ke2 Qe3+ $11)) 47... Re1+ $1 {[%emt 0:00:27]} 48. Kxe1 {[%emt 0:00:03][%csl Gh8][%cal Rb8g8]} Qe3+ {[%emt 0:00:14]} 49. Kd1 {[%emt 0:00:18][%csl Gh8][%cal Rb8g8]} Qg1+ {[%emt 0:00:07]} 50. Kd2 {[%emt 0:00:10]} 1/2-1/2

[Event "Marshall CC Premier 01-2025"]
[Site "New York"]
[Date "2025.01.04"]
[Round "2.5"]
[White "Goodrich, Elliott"]
[Black "Bonin, Jay"]
[Result "0-1"]
[ECO "B32"]
[WhiteElo "1884"]
[BlackElo "2095"]
[Annotator "RC"]
[PlyCount "146"]
[EventDate "2025.01.03"]
[EventType "swiss"]
[EventCountry "USA"]
[SourceTitle "playchess.com"]
[Source "ChessBase"]
[SourceQuality "1"]
[TimeControl "5400+30"]

1. e4 {[%emt 0:00:04]} c5 {[%emt 0:00:04]} 2. Nf3 {[%emt 0:00:06]} Nc6 {[%emt 0:00:05]} 3. d4 {[%emt 0:00:04]} cxd4 {[%emt 0:00:03]} 4. Nxd4 {[%emt 0:00:05]} e5 {[%emt 0:00:03]} 5. Nb5 {[%emt 0:00:15]} d6 {[%emt 0:00:13]} 6. N1c3 {[%emt 0:00:07]} a6 {[%emt 0:00:05]} 7. Na3 {[%emt 0:00:11]} Be6 {[%emt 0:00:04]} 8. Nd5 {[%emt 0:02:33]} Nf6 {[%emt 0:00:14]} 9. Nxf6+ {[%emt 0:00:48]} Qxf6 {[%emt 0:00:28]} 10. Nc4 {[%emt 0:01:34]} Qg6 {[%emt 0:00:45]} 11. Nd2 {[%emt 0:10:01]} d5 {[%emt 0:01:29]} 12. Bd3 {[%emt 0:04:17]} Qxg2 {[%emt 0:00:26]} 13. Qf3 {[%emt 0:00:04]} Qxf3 {[%emt 0:00:40]} 14. Nxf3 {[%emt 0:00:06]} f6 {[%emt 0:00:11]} 15. c3 {[%emt 0:01:18]} Bc5 {[%emt 0:00:23]} 16. Rg1 {[%emt 0:04:28]} Kf7 {[%emt 0:00:37]} 17. Ke2 {[%emt 0:02:40]} Rad8 {[%emt 0:00:41]} 18. b3 {[%emt 0:03:41]} dxe4 {[%emt 0:01:59]} 19. Bxe4 {[%emt 0:00:07]} Bd5 {[%emt 0:00:24]} 20. Nd2 {[%emt 0:03:05]} g6 {[%emt 0:01:02]} 21. Bxd5+ {[%emt 0:01:17]} Rxd5 {[%emt 0:00:04]} 22. Ne4 {[%emt 0:00:09]} Be7 {[%emt 0:01:09]} 23. Bb2 {[%emt 0:05:58]} Rhd8 {[%emt 0:00:19]} 24. c4 {[%emt 0:04:49]} Nd4+ {[%emt 0:01:27]} 25. Kf1 {[%emt 0:00:59]} R5d7 {[%emt 0:00:09]} 26. Nc3 {[%emt 0:08:53]} b5 {[%emt 0:09:02]} 27. Nd5 {[%emt 0:04:09]} Nf3 {[%emt 0:00:53]} 28. Rg3 {[%emt 0:02:52]} e4 {[%emt 0:02:11]} 29. Ke2 {[%emt 0:04:32]} f5 {[%emt 0:03:02]} 30. Bc3 {[%emt 0:02:15]} bxc4 {[%emt 0:01:14]} 31. bxc4 {[%emt 0:00:26]} Rb7 {[%emt 0:00:39]} 32. Rc1 {[%emt 0:05:28]} Bc5 {[%emt 0:03:10]} 33. h4 {[%emt 0:02:19]} Rdb8 {[%emt 0:01:25]} 34. Rg2 {[%emt 0:02:31]} Rb1 {[%emt 0:03:14]} 35. Kd1 {[%emt 0:02:30]} Nxh4 {[%emt 0:01:04]} 36. Rh2 {[%emt 0:00:12]} g5 {[%emt 0:00:14]} 37. Be5 {[%emt 0:01:58]} Rxc1+ {[%emt 0:02:49]} 38. Kxc1 {[%emt 0:00:08]} Rb7 {[%emt 0:00:04]} 39. Bg3 {[%emt 0:05:14]} Ba3+ {[%emt 0:00:17]} 40. Kc2 {[%emt 0:00:08]} Rb2+ {[%emt 0:00:15]} 41. Kc3 {[%emt 0:00:06]} e3 {[%emt 0:05:25]} 42. Nxe3 {[%emt 0:07:09]} f4 {[%emt 0:01:18]} 43. Bxh4 {[%emt 0:00:09]} fxe3 {[%emt 0:00:35]} 44. Bg3 {[%emt 0:03:11]} exf2 {[%emt 0:03:49]} 45. Rxh7+ {[%emt 0:02:18]} Kg6 {[%emt 0:00:42]} 46. Rh1 {[%emt 0:00:05]} Re2 {[%emt 0:01:05]} 47. Kd3 {[%emt 0:00:56]} Rxa2 {[%emt 0:00:04]} 48. Kd4 {[%emt 0:00:10]} Bb4 {[%emt 0:04:59]} 49. c5 {[%emt 0:02:54]} Rc2 {[%emt 0:00:45]} 50. c6 {[%emt 0:00:34]} Rxc6 {[%emt 0:00:49]} 51. Bxf2 {[%emt 0:00:06]} a5 {[%emt 0:00:43]} 52. Be3 {[%emt 0:01:54]} a4 {[%emt 0:00:57]} 53. Kd5 {[%emt 0:02:26]} Ra6 {[%emt 0:00:36]} 54. Kc4 {[%emt 0:02:00]} Be7 {[%emt 0:00:15]} 55. Rg1 {[%emt 0:01:00]} Bf6 {[%emt 0:00:23]} 56. Kb4 {[%emt 0:00:39]} a3 {[%emt 0:01:31]} 57. Bxg5 {[%emt 0:00:22]} Bxg5 {[%emt 0:00:15]} 58. Kb3 {[%emt 0:00:08]} Kf5 {[%emt 0:00:20]} 59. Re1 {[%emt 0:00:45]} Bf4 {[%emt 0:00:39]} 60. Re2 {[%emt 0:00:21]} Bd6 {[%emt 0:00:15]} 61. Ka2 {[%emt 0:00:37]} Ra5 {[%emt 0:00:26]} 62. Kb3 {[%emt 0:00:14]} Re5 {[%emt 0:00:10]} 63. Rd2 {[%emt 0:00:34]} Re3+ {[%emt 0:03:04]} 64. Ka2 {[%emt 0:00:09]} Ke6 {[%emt 0:00:33]} 65. Rg2 {[%emt 0:00:30]} Kd5 {[%emt 0:00:21]} 66. Rd2+ {[%emt 0:00:21]} Kc6 {[%emt 0:00:04]} 67. Kb1 {[%emt 0:00:38]} Bc5 {[%emt 0:00:17]} 68. Ka2 {[%emt 0:00:13]} Kb5 {[%emt 0:00:08]} 69. Rh2 {[%emt 0:00:26]} Ka4 {[%emt 0:00:19]} 70. Rg2 {[%emt 0:00:32]} Bb4 {[%emt 0:00:15]} 71. Rh2 {[%emt 0:00:20]} Rd3 {[%emt 0:00:05]} 72. Rh4 {[%emt 0:00:16]} Rd2+ {[%emt 0:00:09]} 73. Kb1 {[%emt 0:00:05]} Kb3 {[%emt 0:00:06]} 0-1